{"text_format":"1","workbook":"xlsx","n_sheets":4,"sheets":["تعريفات اساسية","الادخال الشهري","المؤثرات بالشهر","النهائي"],"not_rendered":{"charts":0,"images":0,"macros":1,"external_links":0,"defined_names":3,"comments":0,"pivot_tables":0},"unopened":[],"bounds":{"document_bytes":16777216,"sheet_cells":100000,"rows_first":2000,"rows_last":500,"rows_between":2000,"halvings":0,"cell_chars":16384,"cell_head_chars":4096},"cells_cut":0,"cells_raw":0,"read":"whole","date_system":"1900"}

{"sheet":"تعريفات اساسية","index":0,"n_rows":13,"n_cols":4,"rows_kept":13,"cut":false,"hidden":false,"merged":[]}
[]
[null,"اسم الشهر",null,"حالة المؤثرات"]
[null,"فبراير2024",null,"اضافي ايام"]
[null,"مارس2024",null,"اضافي ساعات"]
[null,"ابريل2024",null,"جزاءات "]
[null,"مايو2024",null,"استقالات"]
[null,"يونيو2024",null,"تعيين جديد"]
[null,"يوليو2024"]
[null,"اغسطس2024"]
[null,"سبتمبر2024"]
[null,"اكتوبر2024"]
[null,"نوفمبر2024"]
[null,"ديسمبر2024"]

{"sheet":"الادخال الشهري","index":1,"n_rows":60,"n_cols":11,"rows_kept":60,"cut":false,"hidden":false,"merged":[]}
[]
[]
[]
["م","اسم الموظف","الوظيفة","تاريخ الحركة","الشهر","نوع المؤثر","اضافي ايام","اضافي ساعات","جزاءات ","استقالات","تعيين جديد"]
[1,"سامر محمود","شئون الموظفين","2024-02-01","فبراير2024","تعيين جديد"]
[2,"ابوبكر عادل","الارشيف","2024-02-12","مارس2024","اضافي ايام",null,null,null,null,"2024-02-12"]
[3,"محمد سيد","الارؤشيف","2024-02-15","فبراير2024","اضافي ايام",4]
[4,"محمد محمود","سسسس","2024-02-12","فبراير2024","اضافي ساعات",null,22]
[5,"محمد خالد","سيسي","2024-02-14","فبراير2024","جزاءات ",null,null,2]
[6,"محمد سيد","الارؤشيف","2024-02-15","فبراير2024","اضافي ايام",2]
[7]
[8]
[9]
[10]
[11]
[12]
[13]
[14]
[15]
[16]
[17]
[18]
[19]
[20]
[21]
[22]
[23]
[24]
[25]
[26]
[27]
[28]
[29]
[30]
[31]
[32]
[33]
[34]
[35]
[36]
[37]
[38]
[39]
[40]
[41]
[42]
[43]
[44]
[45]
[46]
[47]
[48]
[49]
[50]
[51]
[52]
[53]
[54]
[55]
[56]

{"sheet":"المؤثرات بالشهر","index":2,"n_rows":10,"n_cols":11,"rows_kept":10,"cut":false,"hidden":false,"merged":[]}
[]
[null,null,null,null,null,null,null,"الشهر"]
[null,null,null,null,null,null,null,"فبراير2024"]
[]
["م","اسم الموظف","الوظيفة","تاريخ الحركة","الشهر","نوع المؤثر","اضافي ايام","اضافي ساعات","جزاءات ","استقالات","تعيين جديد"]
[1,"سامر محمود","شئون الموظفين","2024-02-01","فبراير2024","تعيين جديد"]
[3,"محمد سيد","الارؤشيف","2024-02-15","فبراير2024","اضافي ايام",4]
[4,"محمد محمود","سسسس","2024-02-12","فبراير2024","اضافي ساعات",null,22]
[5,"محمد خالد","سيسي","2024-02-14","فبراير2024","جزاءات ",null,null,2]
[6,"محمد سيد","الارؤشيف","2024-02-15","فبراير2024","اضافي ايام",2]

{"sheet":"النهائي","index":3,"n_rows":29,"n_cols":12,"rows_kept":29,"cut":false,"hidden":false,"merged":[]}
[]
[]
[]
["م","اسم الموظف","الوظيفة","تاريخ الحركة","الشهر","نوع المؤثر","اضافي ايام","اضافي ساعات","جزاءات ","استقالات","تعيين جديد","ملاحظات"]
[1,"سامر محمود",null,null,null,null,{"$f":"COUNTIF('المؤثرات بالشهر'!F6:F29,\"اضافي ايام\")","v":2}]
[3,"محمد سيد","الارؤشيف","2024-02-15","فبراير2024","اضافي ايام",{"$f":"COUNTIF('المؤثرات بالشهر'!F7:F30,\"اضافي ايام\")","v":2}]
[null,null,null,null,null,null,{"$f":"COUNTIF('المؤثرات بالشهر'!F8:F31,\"اضافي ايام\")","v":1}]
[null,null,null,null,null,null,{"$f":"COUNTIF('المؤثرات بالشهر'!F9:F32,\"اضافي ايام\")","v":1}]
[null,null,null,null,null,null,{"$f":"COUNTIF('المؤثرات بالشهر'!F10:F33,\"اضافي ايام\")","v":1}]
[null,null,null,null,null,null,{"$f":"COUNTIF('المؤثرات بالشهر'!F11:F34,\"اضافي ايام\")","v":0}]
[null,null,null,null,null,null,{"$f":"COUNTIF('المؤثرات بالشهر'!F12:F35,\"اضافي ايام\")","v":0}]
[null,null,null,null,null,null,{"$f":"COUNTIF('المؤثرات بالشهر'!F13:F36,\"اضافي ايام\")","v":0}]
[null,null,null,null,null,null,{"$f":"COUNTIF('المؤثرات بالشهر'!F14:F37,\"اضافي ايام\")","v":0}]
[null,null,null,null,null,null,{"$f":"COUNTIF('المؤثرات بالشهر'!F15:F38,\"اضافي ايام\")","v":0}]
[null,null,null,null,null,null,{"$f":"COUNTIF('المؤثرات بالشهر'!B16:B100,B16)","v":0}]
[null,null,null,null,null,null,{"$f":"COUNTIF('المؤثرات بالشهر'!B17:B101,B17)","v":0}]
[null,null,null,null,null,null,{"$f":"COUNTIF('المؤثرات بالشهر'!B18:B102,B18)","v":0}]
[null,null,null,null,null,null,{"$f":"COUNTIF('المؤثرات بالشهر'!$B$5:$B$278,F18)","v":0}]
[null,null,null,null,null,null,{"$f":"COUNTIF('المؤثرات بالشهر'!$B$5:$B$278,F19)","v":0}]
[null,null,null,null,null,null,{"$f":"COUNTIF('المؤثرات بالشهر'!$B$5:$B$278,F20)","v":0}]
[null,null,null,null,null,null,{"$f":"COUNTIF('المؤثرات بالشهر'!$B$5:$B$278,F21)","v":0}]
[null,null,null,null,null,null,{"$f":"COUNTIF('المؤثرات بالشهر'!$B$5:$B$278,F22)","v":0}]
[null,null,null,null,null,null,{"$f":"COUNTIF('المؤثرات بالشهر'!$F$6:$F$278,B23)","v":0}]
[null,null,null,null,null,null,{"$f":"COUNTIF('المؤثرات بالشهر'!$F$6:$F$278,B24)","v":0}]
[null,null,null,null,null,null,{"$f":"COUNTIF('المؤثرات بالشهر'!$F$6:$F$278,B25)","v":0}]
[null,null,null,null,null,null,{"$f":"COUNTIF('المؤثرات بالشهر'!$F$6:$F$278,B26)","v":0}]
[null,null,null,null,null,null,{"$f":"COUNTIF('المؤثرات بالشهر'!$F$6:$F$278,B27)","v":0}]
[null,null,null,null,null,null,{"$f":"COUNTIF('المؤثرات بالشهر'!$F$6:$F$278,B28)","v":0}]
[null,null,null,null,null,null,{"$f":"COUNTIF('المؤثرات بالشهر'!$F$6:$F$278,B29)","v":0}]